Cogmind - Beta 14 @@@ ROGUE MODE // 2025.03.02 @ 17:47:25 Player: toydarian Result: Destroyed by as-22189 with Assembled Heavy Rifle Performance ------------- Evolutions (0) 0 Regions Visited (2) 400 Robots Destroyed (30) 150 Value Destroyed (421) 421 Prototype IDs (0) 0 Alien Tech Used (0) 0 Bonus (4) 4 TOTAL SCORE: 975 Bonus ------- High Alert Combat Kills 4 Cogmind --------- Core Integrity 0/250 Matter 100/300 Energy 125/125 System Corruption 2% Temperature Cool (5) Movement Rolling (110) Ox2 Location -10/Mines Parts ------- > --- POWER (1) -------- Light Ion Engine > --- PROPULSION (2) --- Light Treads Wheel > --- UTILITY (2) ------ Large Storage Unit Signal Interpreter > --- WEAPON (2) ------- Light Assault Rifle Mini Grenade Launcher > --- INVENTORY (15) --- Compact Wheel Large Matter Pod (150) Visual Processing Unit Sensor Array Hacking Suite Light Assault Rifle Light Assault Rifle Light Assault Rifle Light Assault Rifle Light Assault Rifle Grenade Launcher Peak State ------------ > --- POWER ------------ Ion Engine > --- PROPULSION ------- Wheel Compact Wheel > --- UTILITY ---------- High-capacity Storage Unit Seismic Detector > --- WEAPON ----------- Assault Rifle Assault Rifle > --- INVENTORY -------- Light Ion Engine Light Treads Wheel Wheel Wheel Compact Wheel Compact Wheel Medium Matter Pod Large Matter Pod Visual Processing Unit Sensor Array Signal Interpreter Hacking Suite Light Assault Rifle Light Assault Rifle Light Assault Rifle Light Assault Rifle [Rating: 9] Favorites ----------- Power Light Ion Engine Engine Light Ion Engine Propulsion Wheel Treads Light Treads Wheel Wheel Utility Seismic Detector Device Seismic Detector Storage Large Storage Unit Processor Signal Interpreter Weapon Assault Rifle Ballistic Gun Assault Rifle Launcher Mini Grenade Launcher Build | -11 -10 -10 ------- Run | Yrd Mat Min Slots Evolved . | . . . Power . | . . . Propulsion . | . . . Utility . | . . . Weapon . | . . . Parts Attached 38 | 9 14 15 Power 3 | 1 1 1 Engine 3 | 1 1 1 Core . | . . . Reactor . | . . . Propulsion 15 | 3 7 5 Treads 4 | . 1 3 Leg . | . . . Wheel 11 | 3 6 2 Hover . | . . . Flight . | . . . Utility 7 | 3 4 . Device 2 | 2 . . Storage 4 | 1 3 . Processor 1 | . 1 . Hackware . | . . . Protection . | . . . Artifact . | . . . Weapon 13 | 2 2 9 Energy Gun . | . . . Energy Cannon . | . . . Ballistic Gun 9 | 2 2 5 Ballistic Cannon . | . . . Launcher 4 | . . 4 Special Weapon . | . . . Impact Weapon . | . . . Slashing Weapon . | . . . Piercing Weapon . | . . . Special Melee Weapon . | . . . Unidentified Prototypes . | . . . Parts Lost 11 | . 5 6 Power 2 | . 1 1 Propulsion 4 | . 1 3 Utility 1 | . 1 . Weapon 4 | . 2 2 Highest Loss Streak 4 | . 4 2 To Critical Strikes 1 | . 1 . Average Slot Usage (%) 98 | . 98 98 Engine 13 | . 13 12 Treads 3 | . . 9 Wheel 24 | . 27 18 Device 8 | . 13 . Storage 14 | . 14 14 Processor 5 | . . 14 Ballistic Gun 24 | . 27 18 Launcher 3 | . . 9 Peak Build Rating 9 | 7 9 9 Average Rating 7 | 6 7 8 On Entrance 5 | . 7 8 Naked Turns . | . . . Heaviest Build 50 | 15 50 27 Greatest Support 26 | 26 26 26 Greatest Overweight (x) 2 | . 2 2 Average Overweight (x) . | . . 1 Largest Inventory Capacity 20 | 8 20 15 Average Capacity 13 | 7 14 15 Most Carried 17 | 8 17 15 Average Carried 11 | 5 12 13 Final Capacity 15 | 8 15 15 Final Carried 14 | 8 14 11 Class Distribution -------------------- 52% | Scavenger-Mutant 47% | Mutant Dominant Class ---------------- Mutant | -10/Materials Scavenger-Mutant | -10/Mines Resources | -11 -10 -10 ----------- Run | Yrd Mat Min Matter Collected 1221 | 464 594 163 Remotely . | . . . Salvage Created 813 | 194 524 95 Parts 75 | 17 49 9 Haulers Intercepted . | . . . Recyclers Shooed 2 | 1 . 1 Parts Field Recycled . | . . . Retrieved Matter . | . . . Parts Self-Destructed . | . . . Prevented . | . . . Kills | -11 -10 -10 ------- Run | Yrd Mat Min Combat Hostiles Destroyed 30 | . 14 16 Guns 18 | . 14 4 AOE 12 | . . 12 Classes Destroyed 9 | 3 4 2 Worker 2 | 2 . . Builder 1 | . . 1 Tunneler 5 | 5 . . Recycler 3 | 1 2 . Operator 1 | . 1 . Watcher 2 | . 2 . Swarmer 11 | . 9 2 Grunt 5 | . 5 . Assembled 14 | . . 14 Best Kill Streak 9 | 3 3 9 Combat Bots Only 9 | . 3 9 Max Kills in Single Turn 2 | 1 1 2 Gunslinging . | . . . Exploded 2 | . . 2 Melee . | . . . Uniques/NPCs Destroyed . | . . . Combat | -11 -10 -10 -------- Run | Yrd Mat Min Hostile Shots Fired 134 | . 111 23 Missed 43 | . 38 5 Damage Taken 1075 | . 669 406 Core 268 | . 179 89 Absorbed by Shields . | . . . Core Remaining (%) 100 | 100 . . Volleys Fired 100 | 11 61 28 Largest 2 | 2 2 2 Hottest 60 | 40 40 60 Shots Fired 194 | 22 122 50 Gun 174 | 22 122 30 Cannon . | . . . Launcher 20 | . . 20 Special . | . . . Kinetic 174 | 22 122 30 Thermal . | . . . Explosive 20 | . . 20 Electromagnetic . | . . . Robot Hit Streak 14 | 13 14 6 Robot Miss Streak 8 | 1 8 2 Penetration Max . | . . . Secondary Targets . | . . . Shots Hit Robots 99 | 17 58 24 Core Hits 69 | 9 30 30 Critical Kills . | . . . Critical Parts Destroyed 2 | 1 1 . Critical Strikes 2 | 1 1 . Destroy 2 | 1 1 . Melee Attacks . | . . . Impact . | . . . Slashing . | . . . Piercing . | . . . Sneak Attacks . | . . . Combat Hostiles . | . . . Follow-up Attacks . | . . . Damage Inflicted 2088 | 206 753 1129 Guns 1079 | 206 753 120 Cannons . | . . . Explosions 1009 | . . 1009 Melee . | . . . Ramming . | . . . Kinetic 1079 | 206 753 120 Thermal . | . . . Explosive 1009 | . . 1009 Electromagnetic . | . . . Impact . | . . . Slashing . | . . . Piercing . | . . . Highest Corruption 2 | . . 2 Average Corruption 2 | . . 2 Corruption Purged . | . . . Corruption Blocked . | . . . Effects 4 | . . 4 Message Errors 2 | . . 2 Data Loss (minor) 1 | . . 1 Misfires 1 | . . 1 Overload Shots . | . . . Overflow Damage 26 | . . 26 Projectiles . | . . . Explosions 26 | . . 26 Melee . | . . . Knockbacks . | . . . Impact . | . . . Kinetic . | . . . Secondary . | . . . Self-Inflicted Damage 36 | . . 36 Shots 2 | . . 2 Rammed . | . . . Targets Rammed . | . . . Kicked . | . . . Crushed . | . . . Highest Temperature 12 | . 12 10 Average Temperature 6 | . 5 7 Received Heat Transfer 144 | . 144 . Siege Activations . | . . . Robots Corrupted . | . . . Combat Hostiles . | . . . Parts Fried . | . . . Impact Corruptions . | . . . Robots Melted . | . . . Combat Hostiles . | . . . Parts Melted . | . . . Heat Transferred . | . . . Parts Sabotaged . | . . . Parts Stolen . | . . . Parts Stripped . | . . . Power Chain Reactions . | . . . Alert | -11 -10 -10 ------- Run | Yrd Mat Min Peak Influence 449 | 40 449 145 Initial 67 | . 26 67 Average 155 | 18 229 75 Maximum Alert Level 2 | . 2 . Low Security (%) 66 | 100 39 100 Level 1 31 | . 56 . Level 2 1 | . 3 . Level 3 . | . . . Level 4 . | . . . Level 5 . | . . . High Security . | . . . Max Security . | . . . Squads Dispatched 2 | . 2 . Investigation . | . . . Extermination . | . . . Reinforcement 2 | . 2 . Assault . | . . . Garrison . | . . . Intercept . | . . . Searches Triggered . | . . . Construction Impeded . | . . . Haulers Reinforced . | . . . Active Scanning Responses . | . . . Cargo Convoy Interrupts . | . . . Stealth | -11 -10 -10 --------- Run | Yrd Mat Min Distress Signals 1 | . 1 . Communications Jammed . | . . . Distress Signals . | . . . Times Spotted 42 | . 21 21 Peak Tracking Total 4 | . 4 3 Tactical Retreats 4 | . 2 2 Traps | -11 -10 -10 ------- Run | Yrd Mat Min Traps Triggered . | . . . Indirectly . | . . . Trap Hack Attempts . | . . . Triggered . | . . . Disarmed . | . . . Reprogrammed 6 | . 6 . Reused . | . . . Traps Extracted . | . . . Installed . | . . . Triggered . | . . . Machines | -11 -10 -10 ---------- Run | Yrd Mat Min Machines Disabled 2 | . 1 1 Max in Single Turn 1 | . 1 1 Machines Repaired . | . . . Machines Dismantled . | . . . Machines Sabotaged . | . . . Overloaded Fab Kills . | . . . Hacking | -11 -10 -10 --------- Run | Yrd Mat Min Machines Accessed 4 | . 4 . Terminals 4 | . 4 . Fabricators . | . . . Repair Stations . | . . . Recycling Units . | . . . Scanalyzers . | . . . Garrison Access . | . . . Total Hacks 13 | . 13 . Successful 6 | . 6 . Failed 7 | . 7 . Catastrophic . | . . . Database Lockouts . | . . . Manual 9 | . 9 . Terminals 13 | . 13 . Fabricators . | . . . Repair Stations . | . . . Recycling Units . | . . . Scanalyzers . | . . . Garrison Access . | . . . Terminal Hacks 4 | . 4 . Locate Traps 2 | . 2 . Reprogram Traps 1 | . 1 . Zone Layout 1 | . 1 . Fabricator Hacks . | . . . Repair Station Hacks . | . . . Recycling Unit Hacks . | . . . Scanalyzer . | . . . Garrison Access Hacks . | . . . Unauthorized Hacks 2 | . 2 . Terminals 2 | . 2 . Botnet 2 | . 2 . Fabricators . | . . . Repair Stations . | . . . Recycling Units . | . . . Scanalyzers . | . . . Garrison Access . | . . . Data Cores Recovered 1 | . 1 . Used . | . . . Hacking Detections 4 | . 4 . Full Trace Events . | . . . Feedback Events . | . . . Feedback Blocked . | . . . Robot Schematics Acquired . | . . . Robots Built . | . . . Authchips . | . . . Time . | . . . Total Robot Build Rating . | . . . Part Schematics Acquired . | . . . Parts Built . | . . . Authchips . | . . . Time . | . . . Total Part Build Rating . | . . . Parts Repaired . | . . . Time . | . . . Parts Recycled . | . . . Recycled Matter . | . . . Retrieved Matter . | . . . Retrieved Components . | . . . Parts Scanalyzed . | . . . Part Schematics Acquired . | . . . Parts Damaged . | . . . Bothacking | -11 -10 -10 ------------ Run | Yrd Mat Min Used RIF Installer . | . . . Robots Hacked . | . . . Non-combat . | . . . Combat . | . . . Robot Hacks Applied . | . . . Relay Couplers Released . | . . . Fabnet Peak Effective % . | . . . Robots Rewired . | . . . Allies Hacked . | . . . Hacks Repelled . | . . . Allies | -11 -10 -10 -------- Run | Yrd Mat Min Total Allies 3 | . . 3 Largest Group 3 | . . 3 Highest-Rated Group 40 | . . 40 Highest-Rated Ally 16 | . . 16 Total Orders . | . . . Ally Attacks 10 | . . 10 Total Damage 122 | . . 122 Kills 1 | . . 1 Allies Corrupted . | . . . Allies Melted . | . . . Intel | -11 -10 -10 ------- Run | Yrd Mat Min Robot Analysis Total . | . . . Derelict Logs Recovered . | . . . Drone Launches . | . . . Drone Recoveries . | . . . Exploration | -11 -10 -10 ------------- Run | Yrd Mat Min Turns Passed 1747 | 206 988 553 Spaces Moved 1253 | 133 795 325 Core 1 | 1 . . Treads 95 | . . 95 Legs . | . . . Wheels 1157 | 132 795 230 Hover . | . . . Flight . | . . . Fastest Speed 50 | 50 80 90 Average Speed 104 | 90 92 140 Slowest Speed 240 | 100 130 240 Overloaded Moves . | . . . Propulsion Burnouts . | . . . Robots Hopped . | . . . Cave-ins Triggered . | . . . Exploration Rate (%) 48 | 7 79 58 Regions Visited 2 Branch Regions 1 Pre-discovered Areas . | . . . Known Exits Taken 1 | . 1 . Unknown Exits Taken 1 | 1 . . Scrap Searched . | . . . Spaces Dug 6 | . . 6 Terrain Destroyed 131 | . . 131 Melee . | . . . Projectile . | . . . AOE 131 | . . 131 Terrain Rammed . | . . . Walls Destroyed . | . . . Machines Disabled . | . . . Actions | -11 -10 -10 --------- Run | Yrd Mat Min Total 1506 | 195 936 375 Wait 73 | 31 37 5 Move 1251 | 132 794 325 Hop . | . . . Pick Up 29 | 9 18 2 Fast Attach 8 | 7 . 1 Attach 10 | . 5 5 Detach . | . . . Swap 20 | 2 9 9 Drop 15 | 3 12 . Fire 100 | 11 61 28 Melee . | . . . Ram . | . . . Kick . | . . . Crush . | . . . Escape Stasis . | . . . Rewire . | . . . Trap . | . . . Miscellaneous . | . . . Route ------- -11/Scrapyard -10/Materials (discovered 4 exits: *Mat x3 / *Min) -10/Mines (discovered 2 exits: *Mat x2) History --------- Turn | Location | Event 10 | -11/Scrapyard | Discovered new exit (range 14) 207 | -11/Scrapyard | Entered Materials 316 | -10/Materials | Build established: Mutant 355 | -10/Materials | Discovered new exit (range 16) 500 | -10/Materials | Discovered new exit (range 11) 605 | -10/Materials | Discovered new exit (range 10) 824 | -10/Materials | Core integrity fell below 50% 880 | -10/Materials | Lost 4 parts (1p1n2w) 1134 | -10/Materials | Build established: Scavenger-Mutant 1179 | -10/Materials | Discovered new exit (range 16) 1194 | -10/Materials | Identified exit to Mines 1195 | -10/Materials | Entered Mines 1203 | -10/Mines | Assisted by bots powering up and referring to "LRC-V3" 1219 | -10/Mines | Discovered new exit (range 8) 1227 | -10/Mines | Identified exit to Materials 1270 | -10/Mines | Discovered exit to Materials (range 6) 1272 | -10/Mines | Assembled infested the area 1277 | -10/Mines | Assisted by a Guerilla fighting off Assembled 1284 | -10/Mines | Core integrity fell below 20% 1334 | -10/Mines | Lost 3 allies 1500 | -10/Mines | Destroyed 9 combat bots 1748 | -10/Mines | Destroyed by as-22189 with Assembled Heavy Rifle Last Messages --------------- 01475_ as-96144 destroyed. 01475_ as-11617 destroyed. 01475_ Lgt. Assault Rifle destroyed. 01479_ as-83736 destroyed. 01482_ The unstable cave ceiling collapses. 01501_ Acquired 30 matter. 01502_ The unstable cave ceiling collapses. 01508_ System corrupted: Component data lost. 01508_ as-62379 destroyed. 01510_ The unstable cave ceiling collapses. 01523_ Acquired 11 matter. 01535_ as-13996 destroyed. 01537_ The unstable cave ceiling collapses. 01554_ Acquired 1 matter. 01566_ Acquired 26 matter. 01594_ RC7 PIRNEWVA>AL5DQ| M 01701_ as-85030 destroyed. 01744_ Lgt. Assault Rifle destroyed. 01745_ PKB=>OVNGS44DMNVHLAFMKB&>&JQBPP%55 ERM 01747_ Destroyed Asb. F-torch. Map ----- +----------------------------------------------------+ | ??##### #?####### ## #???????????? | | ??????? # ##???????### ##???????????? | | ??????? #??????????## ##????????????? | | ?????? #???????????# ###?????????????? | | ????? %< ##???????????# ##???????????????? | | ????###! #????????????# #????????????????? | | ?????? #????????????## #????????????????? | | ????? #?????????????## #????????????????? | | ????# ## # ??????????????# ##???????????????? | | ????# ?# ?##??????????????# ##??????????????? | | ???? ??##??????????????#####= #??????????????? | | ???##????????????###???# !# #??????????????? | | ????????????????## #??## |%! #??????????????? | | ????????????????# ### #=! ##??????????????? | | ????????????????# ##???????????????? | | ?????????????????# #????????????????? | | ?????????????????## ##????????????????? | | ??????????????????## #?????????????????? | | ?????????????????## #?????????????????? | | ?????????????????# ####?????????????????? | | %=????????????????# a #?###??????????????? | | ##############??# ## ##?????????????? | | #??# a #?????????????? | | #??# %! #?????????????? | | ############# ##??## != ##?????????????? | | ???????????## #???# @ ###??????????????? | | ??????????## % ###### ###????????????????? | | ??????????# # ##### #??????????????????? | | ??????????# # ##????###???????????? | | ??????????# # # ##???# #####???????? | | ?????????### #### ### ?? | | ???####?## # ?? | | ??## ### ## ## ## ?? | | ??# # ### # ######### ??? | | ??# ###### ##?# #####??????????????? | | ??## ## ##???####??# #??????????????????? | | ???####### #?????????# #??????????????????? | | ?????????## #?????????# #??????????????????? | | ?????????## #?????????# #??????????????????? | | ???????### #?????????# #??????????????????? | | ?####### #?????????# #??????????????????? | | ## ## ##?????????? ???????????????????? | | ##???????????#???????????????????? | | ##????????????????????????????????? | | ######?????????????????????????????????? | | ##??????????????????????????????????????? | | ##???????????????????????????????????????? | | #### ###????????????????????????????????????????? | | ???####??????????????????????????????????????????? | | ?????????????????????????????????????????????????? | +----------------------------------------------------+ Best States ------------- Heat Dissipation 25 Energy Generation 10 Energy Capacity 250 Matter Stores 300 Matter Capacity 300 Sight Range 16 Terrain Scan Density 10 Evasion (%) 44 Recoil Reduction 1 Item Schematics ----------------- None Robot Schematics ------------------ None Fabricated ------------ Nothing Alien Tech Used ----------------- None Achievements -------------- None Challenges ------------ None Game ------ Seed BombardmentGreatInitializer Manual? 0 Play Time 00:18:27 Cumulative 76.9 hours Start 2025.03.02 @ 17:31:06 End 2025.03.02 @ 17:47:25 Sessions 1 Manual Loads 0 Difficulty Rogue Special Mode None Game No. 97 Rogue 90 Adventurer 0 Explorer 7 Win Type - Total 2 Types 2/0/0/0/0/0/0/0/0 Lore% 35 Gallery% 36 Achievement% 35 Wizard Run 0 Options --------- Layout 0 ASCII 0 Keyboard 0 Movement Mouse Keybinds 0 Fullscreen 1 Font 24/Smallcaps Map View 76x50 Zoom Use 0% Tactical HUD 1 Map Filters NONE Filters NONE Steam 1 RUN: 97795581-8347-4991-a855-8040e8d90784